bitfinex/quotes_BTCUSD_20250608
["timestamp","ask_amount","ask_price","bid_price","bid_amount"]
[1749390553523,1.0009416,106080.0,106070.0,0.011]
[1749390553734,0.94463871,106080.0,106070.0,0.011]
[1749390554712,0.94763871,106080.0,106070.0,0.011]
[1749390554952,1.04403819,106080.0,106070.0,0.011]
[1749390555158,1.04402997,106080.0,106070.0,0.011]
[1749390555367,0.94763062,106080.0,106070.0,0.011]
[1749390555572,0.94763063,106080.0,106070.0,0.011]
[1749390555777,1.02277401,106080.0,106070.0,0.011]
[1749390555982,1.00518547,106080.0,106070.0,0.011]
[1749390556219,1.11917436,106080.0,106070.0,0.011]
[1749390556447,1.11917436,106080.0,106060.0,0.011]
[1749390556448,0.68352312,106070.0,106060.0,0.011]
[1749390556664,0.56200909,106040.0,106030.0,0.0863473]
[1749390556876,0.71836912,106040.0,106030.0,0.0863473]
[1749390557098,0.77468255,106040.0,106030.0,0.0863473]
[1749390557546,0.87297603,106040.0,106030.0,0.011]
[1749390557748,0.88265518,106040.0,106030.0,0.011]
[1749390557957,0.88279833,106040.0,106030.0,0.011]
[1749390559191,0.88379833,106040.0,106030.0,0.011]
[1749390559595,0.88479833,106040.0,106030.0,0.011]
[1749390560705,0.9222961,106040.0,106030.0,0.011]
[1749390561144,0.7999761,106040.0,106030.0,0.011]
[1749390561357,0.9222961,106040.0,106030.0,0.011]
[1749390561557,0.64726319,106040.0,106030.0,0.011]
[1749390561762,0.70357662,106040.0,106030.0,0.011]
[1749390561964,0.64726319,106040.0,106030.0,0.011]
[1749390562164,0.70357662,106040.0,106030.0,0.011]
[1749390562370,0.63788304,106040.0,106030.0,0.011]
[1749390562986,0.73428252,106040.0,106030.0,0.011]
[1749390563540,0.63788304,106040.0,106030.0,0.011]
[1749390564360,0.73428252,106040.0,106030.0,0.011]
[1749390564768,0.77178029,106040.0,106030.0,0.011]
[1749390566685,0.74366267,106040.0,106030.0,0.011]
[1749390567642,0.7999761,106040.0,106030.0,0.011]
[1749390568705,0.76247833,106040.0,106030.0,0.011]
[1749390568912,0.80001223,106040.0,106030.0,0.011]
[1749390569050,0.76247833,106040.0,106030.0,0.011]
[1749390570682,0.75626006,106040.0,106030.0,0.011]
[1749390570861,0.77879443,106040.0,106030.0,0.011]
[1749390571268,0.88973476,106040.0,106030.0,0.011]
[1749390571471,0.82080091,106040.0,106030.0,0.011]
[1749390571674,0.87080091,106040.0,106030.0,0.011]
[1749390572814,0.88620091,106040.0,106030.0,0.011]
[1749390573016,0.82988748,106040.0,106030.0,0.011]
[1749390573335,0.61879782,106030.0,106020.0,0.011]
[1749390573549,1.1013973,106030.0,106020.0,0.011]
[1749390574884,1.0513973,106030.0,106020.0,0.011]
[1749390575320,1.1013973,106030.0,106020.0,0.011]
[1749390575704,1.0513973,106030.0,106020.0,0.011]
[1749390575880,0.7651973,106030.0,106020.0,0.011]
[1749390576102,1.1045973,106030.0,106020.0,0.011]
[1749390576295,1.0829363,106030.0,106020.0,0.011]
[1749390576697,0.66679545,106030.0,106020.0,0.011]
[1749390576899,0.78555545,106030.0,106020.0,0.011]
[1749390577247,0.75721645,106030.0,106020.0,0.011]
[1749390578189,0.83607078,106030.0,106020.0,0.011]
[1749390578410,0.87362042,106030.0,106020.0,0.011]
[1749390578619,0.83607078,106030.0,106020.0,0.011]
[1749390578815,0.75486574,106030.0,106020.0,0.011]
[1749390579021,0.41486574,106030.0,106020.0,0.011]
[1749390579193,0.41486574,106030.0,106020.0,0.0261]
[1749390579420,0.25275189,106030.0,106020.0,0.0261]
[1749390580151,0.59275189,106030.0,106020.0,0.0261]
[1749390581540,0.63030685,106030.0,106020.0,0.0261]
[1749390582112,0.59275189,106030.0,106020.0,0.0261]
[1749390582315,0.59275189,106030.0,106020.0,0.0424]
[1749390582550,0.56458678,106030.0,106020.0,0.0424]
[1749390582745,0.59275189,106030.0,106020.0,0.0424]
[1749390583162,0.59275189,106030.0,106020.0,0.0261]
[1749390584531,0.59275189,106030.0,106020.0,0.0424]
[1749390584981,0.56458678,106030.0,106020.0,0.0424]
[1749390589948,0.21148799,106030.0,106020.0,0.1411575]
[1749390590163,0.20205697,106030.0,106020.0,0.1411575]
[1749390590813,0.20005697,106030.0,106020.0,0.13879948]
[1749390591012,0.20005697,106030.0,106020.0,0.3392331]
[1749390591234,0.002,106030.0,106020.0,0.33687531]
[1749390591445,0.02829208,106030.0,106020.0,0.48041051]
[1749390591663,0.01886124,106030.0,106020.0,0.48041051]
[1749390592069,0.19818153,106040.0,106020.0,0.48041051]
[1749390592295,0.00957293,106040.0,106030.0,0.68143564]
[1749390592509,0.00014315,106040.0,106030.0,0.67907814]
[1749390592735,0.01900262,106040.0,106030.0,0.67907814]
[1749390593252,0.00957275,106040.0,106030.0,0.67907814]
[1749390593529,0.00957293,106040.0,106030.0,0.69361899]
[1749390593744,0.00957293,106040.0,106030.0,0.69561899]
[1749390593962,0.00014315,106040.0,106030.0,0.69561899]
[1749390594151,0.01900244,106040.0,106030.0,0.69561899]
[1749390594785,0.00014315,106040.0,106030.0,0.69561899]
[1749390595014,0.02985591,106060.0,106050.0,0.24827774]
[1749390595265,0.03928417,106060.0,106050.0,0.794556]
[1749390595480,0.03928417,106060.0,106050.0,0.80195661]
[1749390595695,0.02042782,106060.0,106050.0,0.80195661]
[1749390595904,0.04871199,106060.0,106050.0,0.80195661]
[1749390596111,0.03928373,106060.0,106050.0,0.80195661]
[1749390596531,0.03928373,106060.0,106050.0,0.80595661]
[1749390596749,0.04871191,106060.0,106050.0,0.798556]
[1749390596964,0.02042791,106060.0,106050.0,0.798556]
[1749390597407,0.011,106060.0,106050.0,0.81309685]
[1749390597633,0.011,106070.0,106060.0,0.60249814]
[1749390597895,0.011,106070.0,106060.0,0.69889762]
[1749390598346,0.011,106070.0,106060.0,0.72720762]
[1749390599041,0.011,106070.0,106060.0,0.72920762]
[1749390599532,0.05565255,106090.0,106080.0,0.24791641]
[1749390599737,0.07450366,106090.0,106080.0,0.79351589]
[1749390600142,0.06507788,106090.0,106080.0,0.79351589]
[1749390600346,0.07450339,106090.0,106080.0,0.79351589]
[1749390600562,0.25359778,106090.0,106080.0,0.12749948]
[1749390600773,0.25359778,106090.0,106080.0,0.09639948]
[1749390600987,0.25359778,106090.0,106080.0,0.33468]
[1749390601200,0.1979637,106080.0,106070.0,0.23900991]
[1749390601407,0.20739028,106080.0,106070.0,0.79471677]
[1749390601669,0.05565309,106090.0,106080.0,0.19796353]
[1749390601874,0.05565255,106090.0,106080.0,0.35424238]
[1749390602085,0.07650366,106090.0,106080.0,0.35424238]
[1749390602296,0.08392944,106090.0,106080.0,0.35424238]
[1749390602527,0.2630232,106090.0,106080.0,0.12799948]
[1749390602735,0.19896361,106080.0,106070.0,0.33636]
[1749390602975,0.19896361,106080.0,106070.0,0.09739948]
[1749390603188,0.53796361,106080.0,106070.0,0.001]
[1749390603394,0.55376361,106080.0,106070.0,0.001]
[1749390604065,0.66616309,106080.0,106070.0,0.001]
[1749390604274,0.20742912,106060.0,106050.0,0.01147878]
[1749390604678,0.54742912,106060.0,106050.0,0.01147878]
[1749390606173,0.57922912,106060.0,106050.0,0.01347878]
[1749390607920,0.60167001,106060.0,106050.0,0.01347878]
[1749390608136,0.61920404,106060.0,106050.0,0.01347878]
[1749390608458,0.71560352,106060.0,106050.0,0.01247878]
[1749390608669,0.71760352,106060.0,106050.0,0.01247878]
[1749390608858,0.7282346,106060.0,106050.0,0.01247878]
[1749390609054,0.7569021,106060.0,106050.0,0.01247878]
[1749390609261,0.77243713,106060.0,106050.0,0.01147878]
[1749390609658,0.7569021,106060.0,106050.0,0.01147878]
[1749390609867,0.7549021,106060.0,106050.0,0.01147878]
[1749390610067,0.77243716,106060.0,106050.0,0.01147878]
[1749390610264,0.7569021,106060.0,106050.0,0.01147878]
[1749390610480,0.77443707,106060.0,106050.0,0.01147878]
[1749390610729,0.77443721,106060.0,106050.0,0.01147878]
[1749390610934,0.83897807,106060.0,106050.0,0.01147878]
[1749390611137,0.82344295,106060.0,106050.0,0.01147878]
[1749390611557,0.86099791,106060.0,106050.0,0.01147878]
[1749390611777,0.7589021,106060.0,106050.0,0.01147878]
[1749390611999,0.8743021,106060.0,106050.0,0.01147878]
[1749390613034,0.92639791,106060.0,106050.0,0.01147878]
[1749390614103,0.97639791,106060.0,106050.0,0.01147878]
[1749390614340,0.9482328,106060.0,106050.0,0.01147878]
[1749390614476,1.1009568,106060.0,106050.0,0.01147878]
[1749390614688,1.01700236,106060.0,106050.0,0.01147878]
[1749390614918,1.0357772,106060.0,106050.0,0.01147878]
[1749390615117,0.59470909,106040.0,106030.0,0.012]
[1749390615275,0.77910147,106040.0,106030.0,0.012]
[1749390615654,0.82910147,106040.0,106030.0,0.012]
[1749390615978,0.85743847,106040.0,106030.0,0.012]
[1749390616179,0.81998018,106040.0,106030.0,0.012]
[1749390616383,0.85743847,106040.0,106030.0,0.012]
[1749390616744,0.99747338,106040.0,106030.0,0.012]
[1749390616975,0.9050739,106040.0,106030.0,0.012]
[1749390617606,0.84488646,106040.0,106030.0,0.012]
[1749390617784,0.84188646,106040.0,106030.0,0.00156764]
[1749390618196,0.66885697,106030.0,106020.0,0.05198078]
[1749390618398,0.85510127,106030.0,106020.0,0.05198078]
[1749390618607,0.94574524,106030.0,106020.0,0.05198078]
[1749390619137,0.98316832,106030.0,106020.0,0.05198078]
[1749390619338,0.98516832,106030.0,106020.0,0.05198078]
[1749390619646,0.93516832,106030.0,106020.0,0.05198078]
[1749390619847,0.93816832,106030.0,106020.0,0.05198078]
[1749390620166,0.90074524,106030.0,106020.0,0.05198078]
[1749390621020,0.93816832,106030.0,106020.0,0.05198078]
[1749390621599,1.03755832,106030.0,106020.0,0.05198078]
[1749390621775,0.93816832,106030.0,106020.0,0.05198078]
[1749390622429,0.94554338,106030.0,106020.0,0.05198078]
[1749390622641,1.01816196,106030.0,106020.0,0.05198078]
[1749390622852,1.04009491,106030.0,106020.0,0.05198078]
[1749390623064,1.09622982,106030.0,106020.0,0.05198078]
[1749390623887,0.66957565,106020.0,106010.0,0.011]
[1749390624087,0.85377545,106020.0,106010.0,0.011]
[1749390624241,0.85376605,106020.0,106010.0,0.011]
[1749390625078,0.85424425,106020.0,106010.0,0.011]
[1749390625734,0.85724425,106020.0,106010.0,0.011]
[1749390625872,0.819896,106020.0,106010.0,0.011]
[1749390626803,0.819896,106020.0,106010.0,0.00156283]
[1749390626804,0.8717851,106020.0,106010.0,0.00156283]
[1749390627156,0.62822713,106010.0,106000.0,0.011]
[1749390627334,0.7750512,106010.0,106000.0,0.011]
[1749390627892,0.7470675,106010.0,106000.0,0.011]
[1749390628305,0.7480675,106010.0,106000.0,0.011]
[1749390628524,0.7760512,106010.0,106000.0,0.011]
[1749390628865,0.7780512,106010.0,106000.0,0.011]
[1749390630409,0.80910348,106010.0,106000.0,0.011]
[1749390630615,0.7780512,106010.0,106000.0,0.011]
[1749390630838,0.81539945,106010.0,106000.0,0.011]
[1749390631039,0.7780512,106010.0,106000.0,0.011]
[1749390631250,0.81539945,106010.0,106000.0,0.011]
[1749390632152,1.30467945,106010.0,106000.0,0.011]
[1749390632304,1.27669575,106010.0,106000.0,0.011]
[1749390632508,1.37309523,106010.0,106000.0,0.011]
[1749390632713,1.27669575,106010.0,106000.0,0.011]
[1749390633334,1.33283066,106010.0,106000.0,0.011]
[1749390636114,1.36117766,106010.0,106000.0,0.011]
[1749390636317,1.32382941,106010.0,106000.0,0.011]
[1749390638205,1.2676945,106010.0,106000.0,0.011]
[1749390638624,1.36409398,106010.0,106000.0,0.011]
[1749390638826,1.2676945,106010.0,106000.0,0.011]
[1749390639133,1.34279386,106010.0,106000.0,0.011]
[1749390639499,0.54756611,105990.0,105980.0,0.011]
[1749390639711,0.847563,105990.0,105980.0,0.011]
[1749390640492,0.847563,105990.0,105980.0,0.014]
[1749390641133,0.81941592,105990.0,105980.0,0.014]
[1749390642161,0.87571008,105990.0,105980.0,0.016]
[1749390642574,0.81941592,105990.0,105980.0,0.016]
[1749390643019,0.81809592,105990.0,105980.0,0.016]
[1749390643261,0.76023008,105990.0,105980.0,0.016]
[1749390643476,0.87439008,105990.0,105980.0,0.016]
[1749390644245,0.72270064,105990.0,105980.0,0.016]
[1749390644445,0.69167049,105990.0,105980.0,0.0484]
[1749390645086,0.66360187,105990.0,105980.0,0.0323]
[1749390645304,0.78806997,105990.0,105980.0,0.016]
[1749390646285,0.75043326,105990.0,105980.0,0.016]
[1749390646895,0.78810466,105990.0,105980.0,0.016]
[1749390647354,0.75043326,105990.0,105980.0,0.016]
[1749390649716,0.6941391,105990.0,105980.0,0.016]
[1749390650211,0.19815041,105980.0,105970.0,0.011]
[1749390650414,0.31699078,105980.0,105970.0,0.011]
[1749390651030,0.31699078,105980.0,105970.0,0.01981538]
[1749390651031,0.39209014,105980.0,105970.0,0.01981538]
[1749390651203,0.39209014,105980.0,105970.0,0.011]
[1749390651640,0.39256805,105980.0,105970.0,0.011]
[1749390651866,0.39256805,105980.0,105970.0,0.014]
[1749390652818,0.39356805,105980.0,105970.0,0.018]
[1749390654619,0.53816911,105970.0,105960.0,0.013]
[1749390654873,0.71357155,105970.0,105960.0,0.013]
[1749390655993,0.71357155,105970.0,105960.0,0.016]
[1749390656323,0.71457155,105970.0,105960.0,0.021]
[1749390657433,0.75226388,105970.0,105960.0,0.021]
[1749390659268,0.71457155,105970.0,105960.0,0.021]
[1749390659824,0.82513155,105970.0,105960.0,0.021]
[1749390660036,1.16854884,105970.0,105960.0,0.016]
[1749390660247,1.23308969,105970.0,105960.0,0.016]
[1749390660809,0.19818781,105960.0,105950.0,0.511]
[1749390661019,0.31702818,105960.0,105950.0,0.511]
[1749390661228,0.3735591,105960.0,105950.0,0.511]
[1749390661655,0.44212754,105960.0,105950.0,0.511]
[1749390661873,0.82866839,105960.0,105950.0,0.511]
[1749390662330,0.82891669,105960.0,105950.0,0.511]
[1749390662582,0.92531617,105960.0,105950.0,0.511]
[1749390662801,0.82891669,105960.0,105950.0,0.511]
[1749390663241,0.82985755,105960.0,105950.0,0.511]
[1749390663456,0.83285755,105960.0,105950.0,0.512]
[1749390663668,1.31529755,105960.0,105950.0,0.491948]
[1749390664006,1.31424617,105960.0,105950.0,0.42730108]
[1749390664212,1.24300903,105960.0,105950.0,0.17964108]
[1749390664426,1.34340851,105960.0,105950.0,0.14523289]
[1749390664639,1.24700903,105960.0,105950.0,0.13579044]
[1749390664856,1.42163617,105960.0,105950.0,0.003]
[1749390665067,0.67020651,105950.0,105940.0,0.0049378]
[1749390665289,0.86423689,105950.0,105940.0,0.0049378]
[1749390665712,0.54768368,105930.0,105920.0,0.013]
[1749390665914,1.18896577,105930.0,105920.0,0.013]
[1749390666331,1.23165729,105930.0,105920.0,0.013]
[1749390666555,1.26002329,105930.0,105920.0,0.013]
[1749390666964,1.26302329,105930.0,105920.0,0.01414315]
[1749390667589,1.28002329,105930.0,105920.0,0.01414315]
[1749390668229,1.24246157,105930.0,105920.0,0.01414315]
[1749390668446,1.25796157,105930.0,105920.0,0.01414315]
[1749390668663,0.93368157,105930.0,105920.0,0.01414315]
[1749390668882,1.24158157,105930.0,105920.0,0.01414315]
[1749390669345,1.28958105,105930.0,105920.0,0.01414315]
[1749390669811,1.24939686,105930.0,105920.0,0.01414315]
[1749390670434,1.29332416,105930.0,105920.0,0.01414315]
[1749390671076,1.26182416,105930.0,105920.0,0.01414315]
[1749390671293,0.81328331,105930.0,105920.0,0.01414315]
[1749390671515,0.84573264,105930.0,105920.0,0.01414315]
[1749390671968,0.79967349,105930.0,105920.0,0.01414315]
[1749390672183,1.24897349,105930.0,105920.0,0.01414315]
[1749390672392,1.75457349,105930.0,105920.0,0.01414315]
[1749390672607,1.78272416,105930.0,105920.0,0.01414315]
[1749390672841,1.82028588,105930.0,105920.0,0.01414315]
[1749390673273,1.78272416,105930.0,105920.0,0.01414315]
[1749390674771,1.82028588,105930.0,105920.0,0.01414315]
[1749390675440,1.80428588,105930.0,105920.0,0.01414315]
[1749390676533,1.81938588,105930.0,105920.0,0.01414315]
[1749390676767,1.89062521,105930.0,105920.0,0.01414315]
[1749390677820,1.79123521,105930.0,105920.0,0.01414315]
[1749390678039,1.75983521,105930.0,105920.0,0.01414315]
[1749390678242,1.81617779,105930.0,105920.0,0.01414315]
[1749390678452,1.81445779,105930.0,105920.0,0.01414315]
[1749390678919,1.22446042,105930.0,105920.0,0.01414315]
[1749390679133,1.33066042,105930.0,105920.0,0.01414315]
[1749390679350,1.32766042,105930.0,105920.0,0.01314315]
[1749390679564,1.33666042,105930.0,105920.0,0.01514315]
[1749390679990,1.22946042,105930.0,105920.0,0.01514315]
[1749390680209,1.33670042,105930.0,105920.0,0.01514315]
[1749390680443,1.37426214,105930.0,105920.0,0.01514315]
[1749390681543,1.33670042,105930.0,105920.0,0.01514315]
[1749390681804,1.22946042,105930.0,105920.0,0.01514315]
[1749390682020,1.33670042,105930.0,105920.0,0.01514315]
[1749390682685,1.33670042,105930.0,105920.0,0.04694315]
[1749390682896,0.71176664,105930.0,105920.0,0.04694315]
[1749390683856,0.70276664,105930.0,105920.0,0.04494315]
[1749390684084,0.70576664,105930.0,105920.0,0.04594315]
[1749390684330,0.70876664,105930.0,105920.0,0.04694315]
[1749390685223,0.73686042,105930.0,105920.0,0.04694315]
[1749390686116,0.70876664,105930.0,105920.0,0.04694315]
[1749390686307,0.73686042,105930.0,105920.0,0.04694315]
[1749390686550,0.27203364,105930.0,105920.0,0.04694315]
[1749390686847,0.31789845,105930.0,105920.0,0.04694315]
[1749390687029,0.73702989,105930.0,105920.0,0.01514315]
[1749390687259,0.77459161,105930.0,105920.0,0.01514315]
[1749390687713,0.77159161,105930.0,105920.0,0.01414315]
[1749390687918,0.77259161,105930.0,105920.0,0.01414315]
[1749390688394,0.84873783,105930.0,105920.0,0.01314315]
[1749390688802,0.84873783,105930.0,105920.0,0.01414315]
[1749390689004,0.90508041,105930.0,105920.0,0.01414315]
[1749390689623,0.86751869,105930.0,105920.0,0.01414315]
[1749390693440,0.86759816,105930.0,105920.0,0.01414315]
[1749390693920,0.93213901,105930.0,105920.0,0.01414315]
[1749390694150,0.87579643,105930.0,105920.0,0.01414315]
[1749390694629,0.96658644,105930.0,105920.0,0.01414315]
[1749390694907,1.37998592,105930.0,105920.0,0.01414315]
[1749390695140,0.53826265,105920.0,105910.0,0.07766667]
[1749390695358,0.71384815,105920.0,105910.0,0.07775688]
[1749390695576,0.65728374,105920.0,105910.0,0.07775688]
[1749390696641,0.71384687,105920.0,105910.0,0.07775688]
[1749390696853,0.65728374,105920.0,105910.0,0.07775688]
[1749390697290,0.72182459,105920.0,105910.0,0.07775688]
[1749390697732,0.8309146,105920.0,105910.0,0.07875688]
[1749390697943,0.8329146,105920.0,105910.0,0.07975688]
[1749390698801,0.75772459,105920.0,105910.0,0.07975688]
[1749390700099,0.8329146,105920.0,105910.0,0.07975688]
[1749390700535,0.8010146,105920.0,105910.0,0.07975688]
[1749390702524,0.67582459,105920.0,105910.0,0.07975688]
[1749390702771,0.72582459,105920.0,105910.0,0.07975688]
[1749390702985,1.14454459,105920.0,105910.0,0.07975688]
[1749390705446,1.20108442,105920.0,105910.0,0.07975688]
[1749390705671,1.17654459,105920.0,105910.0,0.07975688]
[1749390705891,1.20491559,105920.0,105910.0,0.07975688]
[1749390706320,1.26145369,105920.0,105910.0,0.07975688]
[1749390709307,1.20491559,105920.0,105910.0,0.07975688]
[1749390709484,1.91622508,105920.0,105910.0,0.07975688]
[1749390709718,2.01561508,105920.0,105910.0,0.07975688]
[1749390709977,2.01561508,105920.0,105910.0,0.02306924]
[1749390710198,1.8692156,105920.0,105910.0,0.02306924]
[1749390710413,1.9192156,105920.0,105910.0,0.02306924]
[1749390710835,1.8692156,105920.0,105910.0,0.02306924]
[1749390711057,1.9192156,105920.0,105910.0,0.02306924]
[1749390711486,0.63402223,105910.0,105900.0,0.011]
[1749390711697,0.80955384,105910.0,105900.0,0.011]
[1749390712366,0.79501299,105910.0,105900.0,0.011]
[1749390713749,0.80001299,105910.0,105900.0,0.013]
[1749390714177,0.81255384,105910.0,105900.0,0.012]
[1749390714404,0.63514095,105900.0,105890.0,0.011]
[1749390714624,0.95204415,105900.0,105890.0,0.0110902]
[1749390716808,0.96104415,105900.0,105890.0,0.0120902]
[1749390717044,1.06043415,105900.0,105890.0,0.0120902]
[1749390719035,1.04473415,105900.0,105890.0,0.0120902]
[1749390719514,1.07311115,105900.0,105890.0,0.0120902]
[1749390720840,1.08881115,105900.0,105890.0,0.0120902]
[1749390721468,1.05112386,105900.0,105890.0,0.0120902]
[1749390721937,1.08878566,105900.0,105890.0,0.0120902]
[1749390722165,1.15624197,105900.0,105890.0,0.0120902]
[1749390722359,1.11858136,105900.0,105890.0,0.0120902]
[1749390722648,1.16858136,105900.0,105890.0,0.00264115]
[1749390722867,1.16858136,105900.0,105870.0,0.06266654]
[1749390722868,0.6289226,105880.0,105870.0,0.06266654]
[1749390723097,0.6289226,105880.0,105870.0,0.00169429]
[1749390723098,1.56305969,105880.0,105870.0,0.00169429]
[1749390723305,0.31289713,105870.0,105860.0,0.00364634]
[1749390723522,1.38586279,105870.0,105860.0,0.00014334]
[1749390723766,1.31054644,105870.0,105860.0,0.00014334]
[1749390723961,0.60291588,105860.0,105850.0,0.011]
[1749390724170,0.9487277,105860.0,105850.0,0.011]
[1749390724408,0.53839377,105850.0,105840.0,0.011]
[1749390724621,0.8326355,105850.0,105840.0,0.011]
[1749390724831,0.87257242,105850.0,105840.0,0.011]
[1749390725045,0.66955336,105840.0,105830.0,0.0158587]
[1749390725268,0.66957211,105830.0,105820.0,0.011]
[1749390725481,0.66957211,105830.0,105810.0,0.06455142]
[1749390725482,0.53722434,105820.0,105810.0,0.06455142]
[1749390725702,1.17374196,105820.0,105810.0,0.06455142]
[1749390725930,0.78654959,105820.0,105810.0,0.0650296]
[1749390726149,0.87576874,105820.0,105810.0,0.0650296]
[1749390726408,0.77200874,105820.0,105810.0,0.0650296]
[1749390726619,0.82576874,105820.0,105810.0,0.0650296]
[1749390727256,0.82876874,105820.0,105810.0,0.0650296]
[1749390727702,0.82976874,105820.0,105810.0,0.0650296]
[1749390727916,0.79014749,105820.0,105810.0,0.0650296]
[1749390728125,1.23740749,105820.0,105810.0,0.0650296]
[1749390728341,1.29383188,105820.0,105810.0,0.0650296]
[1749390728561,1.22170749,105820.0,105810.0,0.0650296]
[1749390728779,1.20510749,105820.0,105810.0,0.0650296]
[1749390729220,1.14036664,105820.0,105810.0,0.0650296]
[1749390729437,1.23720749,105820.0,105810.0,0.05557686]
[1749390729660,1.25601494,105820.0,105810.0,0.02982651]
[1749390729880,0.63530962,105810.0,105800.0,0.018]
[1749390730098,0.60184,105780.0,105770.0,0.011]
[1749390730344,0.89013827,105780.0,105770.0,0.011]
[1749390730778,0.91854727,105780.0,105770.0,0.011]
[1749390731208,1.16687232,105780.0,105770.0,0.011]
[1749390731641,1.13244464,105780.0,105770.0,0.01114339]
[1749390731856,1.16987232,105780.0,105770.0,0.01114339]
[1749390732091,0.71700464,105780.0,105770.0,0.04294339]
[1749390732301,0.82244464,105780.0,105770.0,0.04294339]
[1749390732518,0.79103564,105780.0,105770.0,0.04294339]
[1749390732735,0.78703564,105780.0,105770.0,0.04294339]
[1749390732934,0.68959564,105780.0,105770.0,0.04294339]
[1749390733202,0.76296488,105780.0,105770.0,0.04294339]
[1749390733832,0.76596488,105780.0,105770.0,0.02704339]
[1749390734050,0.79403564,105780.0,105770.0,0.01114339]
[1749390734262,0.83146332,105780.0,105770.0,0.01114339]
[1749390734692,0.80339256,105780.0,105770.0,0.01114339]
[1749390734921,0.81793341,105780.0,105770.0,0.01114339]
[1749390735569,0.86670751,105780.0,105770.0,0.01114339]
[1749390735778,1.11439256,105780.0,105770.0,0.01114339]
[1749390736027,1.18507494,105780.0,105770.0,0.01114339]
[1749390736455,1.26524904,105780.0,105770.0,0.01114339]
[1749390736692,0.71260691,105780.0,105770.0,0.01114339]
[1749390736906,1.1476475,105780.0,105770.0,0.01114339]
[1749390737581,1.2114216,105780.0,105770.0,0.01114339]
[1749390738029,1.1964216,105780.0,105770.0,0.01114339]
[1749390738244,0.7349675,105780.0,105770.0,0.01114339]
[1749390738483,0.8364475,105780.0,105770.0,0.01114339]
[1749390738741,0.85914793,105780.0,105770.0,0.02734339]
[1749390738991,0.85914793,105780.0,105770.0,0.04324339]
[1749390739239,0.7015264,105780.0,105770.0,0.04324339]
[1749390739479,0.38945721,105780.0,105770.0,0.04324339]
[1749390739727,0.49093721,105780.0,105770.0,0.04324339]
[1749390739946,0.45369593,105780.0,105770.0,0.04324339]
[1749390740203,0.69221593,105780.0,105770.0,0.04324339]
[1749390741802,0.35221593,105780.0,105770.0,0.04324339]
[1749390742049,0.35221593,105780.0,105770.0,0.04446929]
[1749390742050,0.20552505,105780.0,105770.0,0.04446929]
[1749390742262,0.21497836,105780.0,105770.0,0.04446929]
[1749390742471,0.21497836,105780.0,105770.0,0.05392376]
[1749390742688,0.20552505,105780.0,105770.0,0.24301311]
[1749390742906,0.22043176,105780.0,105770.0,0.35832108]
[1749390743125,0.22043176,105780.0,105770.0,0.36635392]
[1749390743337,0.22343176,105780.0,105770.0,0.36777537]
[1749390743555,0.22043176,105780.0,105770.0,0.38526096]
[1749390743766,0.22243176,105780.0,105770.0,0.36777537]
[1749390744193,0.22043176,105780.0,105770.0,0.36777537]
[1749390744425,0.20797863,105780.0,105770.0,0.06195335]
[1749390744636,0.20897863,105780.0,105770.0,0.35458929]
[1749390744876,0.23238815,105780.0,105770.0,0.35458929]
[1749390745093,0.20997863,105780.0,105770.0,0.35458929]
[1749390745309,0.20997863,105780.0,105770.0,0.56282713]
[1749390745516,0.21943167,105780.0,105770.0,0.55337311]
[1749390745766,0.20997854,105780.0,105770.0,0.55437311]
[1749390745984,0.20052514,105780.0,105770.0,0.04546929]
[1749390746190,0.22294858,105780.0,105770.0,0.35803262]
[1749390746405,0.22294858,105780.0,105770.0,0.35566929]
[1749390747066,0.04333015,105780.0,105770.0,0.57312125]
[1749390747278,0.2324018,105780.0,105770.0,0.04546929]
[1749390747489,0.22294858,105780.0,105770.0,0.04546929]
[1749390747709,0.25087939,105780.0,105770.0,0.04546929]
[1749390748146,0.72452015,105780.0,105770.0,0.01214339]
[1749390748400,0.75273087,105780.0,105770.0,0.01214339]
[1749390748832,0.65533139,105780.0,105770.0,0.04526929]
[1749390749039,0.59918986,105780.0,105770.0,0.04526929]
[1749390749251,0.60018986,105780.0,105770.0,0.04526929]
[1749390749466,0.65633139,105780.0,105770.0,0.35526929]
[1749390749701,0.07145038,105780.0,105770.0,0.58217563]
[1749390749932,0.05278301,105780.0,105770.0,0.57272178]
[1749390750143,0.04332961,105780.0,105770.0,0.58217563]
[1749390750356,0.03287639,105780.0,105770.0,0.58217563]
[1749390750566,0.04132943,105780.0,105770.0,0.58217563]
[1749390750774,0.06123596,105780.0,105770.0,0.58217563]
[1749390750949,0.03981252,105780.0,105770.0,0.58217563]
[1749390751177,0.05186313,105780.0,105770.0,0.58217563]
[1749390751403,0.002,105780.0,105770.0,0.69311596]
[1749390751831,0.0245305,105780.0,105770.0,0.69311596]
[1749390752478,0.002,105780.0,105770.0,0.98421596]
[1749390752885,0.23606045,105800.0,105790.0,0.0336259]
[1749390753092,0.29585062,105800.0,105790.0,0.3431459]
[1749390753451,0.29591612,105800.0,105790.0,0.3431459]
[1749390753741,0.29591612,105800.0,105790.0,0.3429459]
[1749390754244,0.25867484,105800.0,105790.0,0.3428659]
[1749390754746,0.26067484,105800.0,105790.0,0.3428659]
[1749390755734,0.26167484,105800.0,105790.0,0.3438659]
[1749390756156,0.26167484,105800.0,105790.0,0.0346259]
[1749390756360,0.26167484,105800.0,105790.0,0.3434259]
[1749390757528,0.26167484,105800.0,105790.0,0.0346259]
[1749390757895,0.26167484,105800.0,105790.0,0.3107459]
[1749390758105,0.26167484,105800.0,105790.0,0.0022259]
[1749390759436,0.26167484,105800.0,105790.0,0.0338259]
[1749390759636,0.26167484,105800.0,105790.0,0.0178259]
[1749390760064,0.26167484,105800.0,105790.0,0.0022259]
[1749390760673,0.23348864,105800.0,105790.0,0.0325259]
[1749390760873,0.26167484,105800.0,105790.0,0.0325259]
[1749390761927,0.26167484,105800.0,105790.0,0.0175259]
[1749390762109,0.26167484,105800.0,105790.0,0.0022259]
[1749390762692,0.60167484,105800.0,105790.0,0.0022259]
[1749390762900,0.66687145,105800.0,105790.0,0.0022259]
[1749390763888,0.76327093,105800.0,105790.0,0.001]
[1749390764091,0.79447093,105800.0,105790.0,0.001]
[1749390764873,0.72602965,105800.0,105790.0,0.001]
[1749390765118,0.76362386,105800.0,105790.0,0.001]
[1749390765765,0.73568977,105800.0,105790.0,0.001]
[1749390765967,0.60169608,105800.0,105790.0,0.0187259]
[1749390766177,0.57348864,105800.0,105790.0,0.0343259]
[1749390766801,0.23348864,105800.0,105790.0,0.0343259]
[1749390766946,0.23348864,105800.0,105790.0,0.53057968]